[Event "Lueneburg Open-A 2019"]
[Site "Lueneburg"]
[Date "2019.08.07"]
[Round "5.15"]
[White "Colbow, Collin"]
[Black "Kroencke, Manfred"]
[Result "1-0"]
[ECO "B47"]
[WhiteElo "2167"]
[BlackElo "2047"]
[Annotator "NA"]
[PlyCount "53"]
[EventDate "2019.08.03"]
[EventType "swiss"]
[EventCountry "GER"]
[SourceTitle "playchess.com"]
[Source "ChessBase"]
[SourceQuality "1"]
[TimeControl "40/5400+30:1800+30"]

1. e4 {[%emt 0:00:00]} c5 {[%emt 0:00:00]} 2. Nf3 {[%emt 0:00:00]} e6 {[%emt 0:00:00]} 3. d4 {[%emt 0:00:00]} cxd4 {[%emt 0:00:04]} 4. Nxd4 {[%emt 0:00:00]} Nc6 {[%emt 0:00:41]} 5. Nc3 {[%emt 0:00:05]} Qc7 {[%emt 0:00:12]} 6. g3 {[%emt 0:00:28]} a6 {[%emt 0:00:15]} 7. Bg2 {[%emt 0:00:08]} Nf6 {[%emt 0:00:18]} 8. O-O {[%emt 0:00:20]} Nxd4 {[%emt 0:06:51]} 9. Qxd4 {[%emt 0:00:23]} Bc5 {[%emt 1:26:09]} 10. Bf4 {[%emt 0:02:20]} d6 {[%emt 0:00:00]} 11. Qd2 {[%emt 0:01:05]} h6 {[%emt 0:00:00]} 12. Rad1 {[%emt 0:00:35]} e5 {[%emt 0:00:00]} 13. Be3 {[%emt 0:00:04]} Ke7 {[%emt 0:00:00]} 14. Bxc5 {[%emt 0:00:49]} Qxc5 {[%emt 0:00:00]} 15. Na4 {[%emt 0:00:36]} Qc6 {[%emt 0:00:00]} 16. f4 {[%emt 0:00:55]} Bg4 {[%emt 0:00:00]} 17. fxe5 {[%emt 0:04:45]} dxe5 {[%emt 0:00:00]} 18. Qb4+ {[%emt 0:02:37]} Ke8 {[%emt 0:00:00]} 19. Rd6 {[%emt 0:26:43]} Qb5 {[%emt 0:00:00]} 20. Qa3 {[%emt 0:01:36]} Rc8 {[%emt 0:00:00]} 21. Rf2 {[%emt 0:08:57]} Bd7 {[%emt 0:00:00]} 22. Nb6 {[%emt 0:05:22]} Rc6 {[%emt 0:00:00]} 23. Nd5 {[%emt 0:18:15]} Qc5 {[%emt 0:00:00]} 24. Nxf6+ {[%emt 0:02:10]} gxf6 {[%emt 0:00:00]} 25. Qxc5 {[%emt 0:00:10]} Rxc5 {[%emt 0:00:00]} 26. Rfd2 {[%emt 0:00:15]} Rc7 {[%emt 0:00:00]} 27. Bh3 {[%emt 0:24:52]} 1-0

[Event "Lueneburg Open-A 2019"]
[Site "Lueneburg"]
[Date "2019.08.07"]
[Round "5.16"]
[White "Jurkic, Bosiljko"]
[Black "Ramme, Christoph"]
[Result "1/2-1/2"]
[ECO "A13"]
[WhiteElo "2046"]
[BlackElo "2154"]
[Annotator "NA"]
[PlyCount "41"]
[EventDate "2019.08.03"]
[EventType "swiss"]
[EventCountry "GER"]
[SourceTitle "playchess.com"]
[Source "ChessBase"]
[SourceQuality "1"]
[TimeControl "40/5400+30:1800+30"]

1. b3 {[%emt 0:00:00]} d5 {[%emt 0:00:00]} 2. Bb2 {[%emt 0:00:00]} c5 {[%emt 0:00:01]} 3. e3 {[%emt 0:00:00]} a6 {[%emt 0:00:31]} 4. Nf3 {[%emt 0:01:48]} Nc6 {[%emt 0:00:40]} 5. d4 {[%emt 0:02:34]} Nf6 {[%emt 0:02:08]} 6. c4 {[%emt 0:07:18]} e6 {[%emt 0:02:59]} 7. Nc3 {[%emt 0:03:35]} cxd4 {[%emt 0:02:52]} 8. Nxd4 {[%emt 0:02:06]} Bd6 {[%emt 0:07:35]} 9. Be2 {[%emt 0:05:24]} Nxd4 {[%emt 0:04:34]} 10. Qxd4 {[%emt 0:03:04]} e5 {[%emt 0:04:23]} 11. Qh4 {[%emt 0:01:42]} dxc4 {[%emt 0:02:58]} 12. bxc4 {[%emt 0:06:37]} Bd7 {[%emt 0:11:38]} 13. O-O {[%emt 0:01:31]} Bc6 {[%emt 0:03:35]} 14. Rfd1 {[%emt 0:04:07]} Qe7 {[%emt 0:01:37]} 15. Qg3 {[%emt 0:08:41]} O-O {[%emt 0:06:48]} 16. Nd5 {[%emt 0:02:18]} Bxd5 {[%emt 0:06:28]} 17. cxd5 {[%emt 0:01:35]} Rfd8 {[%emt 0:07:18]} 18. Qf3 {[%emt 0:06:12]} h6 {[%emt 0:11:15]} 19. e4 {[%emt 0:01:14]} Rac8 {[%emt 0:01:26]} 20. Rac1 {[%emt 0:02:30]} Qe8 {[%emt 0:01:29]} 21. Qf5 {[%emt 0:05:06]} 1/2-1/2

[Event "Lueneburg Open-A 2019"]
[Site "Lueneburg"]
[Date "2019.08.07"]
[Round "5.17"]
[White "Haas, Frank-Martin"]
[Black "Thanisch, Matthias"]
[Result "1/2-1/2"]
[ECO "B14"]
[WhiteElo "2152"]
[BlackElo "1991"]
[Annotator "NA"]
[PlyCount "39"]
[EventDate "2019.08.03"]
[EventType "swiss"]
[EventCountry "GER"]
[SourceTitle "playchess.com"]
[Source "ChessBase"]
[SourceQuality "1"]
[TimeControl "40/5400+30:1800+30"]

1. e4 {[%emt 0:00:00]} c6 {[%emt 0:01:27]} 2. d4 {[%emt 0:00:55]} d5 {[%emt 0:00:17]} 3. exd5 {[%emt 0:00:13]} cxd5 {[%emt 0:01:16]} 4. c4 {[%emt 0:00:07]} Nf6 {[%emt 0:00:14]} 5. Nc3 {[%emt 0:00:10]} e6 {[%emt 0:01:02]} 6. Nf3 {[%emt 0:00:23]} Bb4 {[%emt 0:02:32]} 7. cxd5 {[%emt 0:04:47]} Nxd5 {[%emt 0:01:03]} 8. Qc2 {[%emt 0:02:08]} Nc6 {[%emt 0:02:16]} 9. Bd3 {[%emt 0:03:19]} Nf6 {[%emt 0:13:01]} 10. Be3 {[%emt 0:07:09]} Bd7 {[%emt 0:07:49]} 11. O-O {[%emt 0:05:59]} Rc8 {[%emt 0:07:01]} 12. Qe2 {[%emt 0:13:50]} O-O {[%emt 0:02:29]} 13. a3 {[%emt 0:06:41]} Be7 {[%emt 0:02:48]} 14. Bc2 {[%emt 0:13:01]} Nd5 {[%emt 0:09:46]} 15. Nxd5 {[%emt 0:13:48]} exd5 {[%emt 0:00:39]} 16. Ne5 {[%emt 0:01:46]} Bf6 {[%emt 0:09:34]} 17. f4 {[%emt 0:05:14]} Ne7 {[%emt 0:05:07]} 18. g4 {[%emt 0:05:01]} Bxe5 {[%emt 0:03:07]} 19. fxe5 {[%emt 0:04:31]} Ng6 {[%emt 0:28:02]} 20. Bf5 {[%emt 0:10:58]} 1/2-1/2

[Event "Lueneburg Open-A 2019"]
[Site "Lueneburg"]
[Date "2019.08.07"]
[Round "5.19"]
[White "Wronn, Bernd"]
[Black "Fabregas, Oliver"]
[Result "1-0"]
[ECO "A30"]
[WhiteElo "2128"]
[BlackElo "1956"]
[Annotator "NA"]
[PlyCount "83"]
[EventDate "2019.08.03"]
[EventType "swiss"]
[EventCountry "GER"]
[SourceTitle "playchess.com"]
[Source "ChessBase"]
[SourceQuality "1"]
[TimeControl "40/5400+30:1800+30"]

1. Nf3 {[%emt 0:06:59]} c5 {[%emt 0:00:00]} 2. c4 {[%emt 0:00:26]} b6 {[%emt 0:00:00]} 3. g3 {[%emt 0:00:06]} Bb7 {[%emt 0:00:00]} 4. Bg2 {[%emt 0:00:08]} Nf6 {[%emt 0:00:32]} 5. O-O {[%emt 0:00:08]} g6 {[%emt 0:00:22]} 6. Nc3 {[%emt 0:00:08]} Bg7 {[%emt 0:00:47]} 7. Re1 {[%emt 0:00:33]} d6 {[%emt 0:03:05]} 8. e4 {[%emt 0:00:34]} Nbd7 {[%emt 0:01:58]} 9. d4 {[%emt 0:00:08]} cxd4 {[%emt 0:07:59]} 10. Nxd4 {[%emt 0:00:02]} Rb8 {[%emt 0:01:58]} 11. f4 {[%emt 0:02:09]} O-O {[%emt 0:25:10]} 12. Be3 {[%emt 0:08:17]} a6 {[%emt 0:03:25]} 13. Bf2 {[%emt 0:02:42]} e6 {[%emt 0:05:47]} 14. Rc1 {[%emt 0:05:53]} h5 {[%emt 0:02:30]} 15. h3 {[%emt 0:00:14]} Qe7 {[%emt 0:02:42]} 16. b4 {[%emt 0:03:28]} Rfc8 {[%emt 0:02:45]} 17. Qd3 {[%emt 0:00:03]} Kh8 {[%emt 0:05:59]} 18. Nf3 {[%emt 0:00:56]} Rd8 {[%emt 0:02:09]} 19. Ng5 {[%emt 0:03:14]} Qf8 {[%emt 0:02:16]} 20. Red1 {[%emt 0:01:28]} Kg8 {[%emt 0:03:09]} 21. Qxd6 {[%emt 0:02:15]} Qxd6 {[%emt 0:04:09]} 22. Rxd6 {[%emt 0:00:03]} Bf8 {[%emt 0:00:22]} 23. Rd3 {[%emt 0:11:45]} Bxb4 {[%emt 0:02:31]} 24. Rb1 {[%emt 0:00:28]} Bxc3 {[%emt 0:06:10]} 25. Rxc3 {[%emt 0:00:01]} Bc6 {[%emt 0:03:12]} 26. Rcb3 {[%emt 0:00:10]} b5 {[%emt 0:07:25]} 27. e5 {[%emt 0:00:40]} Bxg2 {[%emt 0:00:21]} 28. Kxg2 {[%emt 0:00:52]} Ne8 {[%emt 0:00:15]} 29. cxb5 {[%emt 0:00:23]} axb5 {[%emt 0:07:32]} 30. Rxb5 {[%emt 0:00:07]} Rxb5 {[%emt 0:00:00]} 31. Rxb5 {[%emt 0:00:02]} Nc7 {[%emt 0:00:00]} 32. Rb7 {[%emt 0:00:59]} Nd5 {[%emt 0:00:00]} 33. a4 {[%emt 0:00:10]} h4 {[%emt 0:00:00]} 34. a5 {[%emt 0:00:47]} hxg3 {[%emt 0:00:00]} 35. Kxg3 {[%emt 0:00:09]} Nf8 {[%emt 0:00:00]} 36. Nxf7 {[%emt 0:02:13]} Ra8 {[%emt 0:00:00]} 37. Bb6 {[%emt 0:08:03]} Nxb6 {[%emt 0:01:25]} 38. axb6 {[%emt 0:00:02]} Ra3+ {[%emt 0:00:09]} 39. Kg4 {[%emt 0:00:18]} Rb3 {[%emt 0:00:05]} 40. Nd6 {[%emt 0:00:36]} Nh7 {[%emt 0:00:32]} 41. Rb8+ {[%emt 0:30:47]} Kg7 {[%emt 0:30:26]} 42. b7 {[%emt 0:00:20]} 1-0

[Event "Lueneburg Open-A 2019"]
[Site "Lueneburg"]
[Date "2019.08.07"]
[Round "5.20"]
[White "Probst, Alexander"]
[Black "Dijkhuis, Oele"]
[Result "1/2-1/2"]
[ECO "B51"]
[WhiteElo "1969"]
[BlackElo "2161"]
[Annotator "NA"]
[PlyCount "84"]
[EventDate "2019.08.03"]
[EventType "swiss"]
[EventCountry "GER"]
[SourceTitle "playchess.com"]
[Source "ChessBase"]
[SourceQuality "1"]
[TimeControl "40/5400+30:1800+30"]

1. e4 {[%emt 0:00:00]} c5 {[%emt 0:00:00]} 2. Nf3 {[%emt 0:00:00]} d6 {[%emt 0:00:00]} 3. Bb5+ {[%emt 0:00:00]} Nd7 {[%emt 0:00:00]} 4. O-O {[%emt 0:01:05]} Ngf6 {[%emt 0:01:21]} 5. Re1 {[%emt 0:00:26]} a6 {[%emt 0:00:32]} 6. Bf1 {[%emt 0:01:33]} b5 {[%emt 0:07:07]} 7. d4 {[%emt 0:03:51]} cxd4 {[%emt 0:01:38]} 8. Qxd4 {[%emt 0:01:49]} e5 {[%emt 0:02:20]} 9. Qd1 {[%emt 0:01:59]} Bb7 {[%emt 0:08:52]} 10. Nc3 {[%emt 0:01:30]} b4 {[%emt 0:02:39]} 11. Nd5 {[%emt 0:07:13]} Nxd5 {[%emt 0:01:23]} 12. exd5 {[%emt 0:00:16]} Be7 {[%emt 0:00:49]} 13. c4 {[%emt 0:02:01]} O-O {[%emt 0:15:43]} 14. a3 {[%emt 0:05:34]} a5 {[%emt 0:04:58]} 15. Bd2 {[%emt 0:01:05]} bxa3 {[%emt 0:04:23]} 16. Rxa3 {[%emt 0:00:25]} Nc5 {[%emt 0:04:32]} 17. b4 {[%emt 0:03:33]} axb4 {[%emt 0:05:08]} 18. Rxa8 {[%emt 0:02:58]} Qxa8 {[%emt 0:01:45]} 19. Bxb4 {[%emt 0:00:23]} Na6 {[%emt 0:02:40]} 20. Ba3 {[%emt 0:01:36]} Nc7 {[%emt 0:04:30]} 21. Qd3 {[%emt 0:07:06]} f6 {[%emt 0:03:28]} 22. Nd4 {[%emt 0:02:11]} Qa5 {[%emt 0:05:50]} 23. Re3 {[%emt 0:08:46]} g6 {[%emt 0:01:31]} 24. Rg3 {[%emt 0:07:18]} exd4 {[%emt 0:07:09]} 25. Rxg6+ {[%emt 0:00:09]} Kh8 {[%emt 0:00:27]} 26. Rh6 {[%emt 0:03:07]} Rf7 {[%emt 0:00:18]} 27. Bb2 {[%emt 0:00:41]} Qa8 {[%emt 0:05:01]} 28. Bxd4 {[%emt 0:01:45]} Qf8 {[%emt 0:01:01]} 29. Qh3 {[%emt 0:05:02]} Bc8 {[%emt 0:03:06]} 30. Qh5 {[%emt 0:01:27]} Qg8 {[%emt 0:02:01]} 31. Bd3 {[%emt 0:03:12]} Bd7 {[%emt 0:03:35]} 32. g3 {[%emt 0:03:38]} Be8 {[%emt 0:00:18]} 33. Qh4 {[%emt 0:05:12]} Bf8 {[%emt 0:01:53]} 34. Rxf6 {[%emt 0:03:01]} Rxf6 {[%emt 0:00:17]} 35. Qxf6+ {[%emt 0:00:34]} Bg7 {[%emt 0:00:18]} 36. Qf4 {[%emt 0:01:05]} Bxd4 {[%emt 0:00:25]} 37. Qxd4+ {[%emt 0:00:11]} Qg7 {[%emt 0:00:03]} 38. Qh4 {[%emt 0:01:57]} Bg6 {[%emt 0:01:09]} 39. Qd8+ {[%emt 0:01:18]} Ne8 {[%emt 0:00:16]} 40. Bxg6 {[%emt 0:02:00]} Qxg6 {[%emt 0:00:01]} 41. Qe7 {[%emt 0:31:04]} h6 {[%emt 0:03:24]} 42. Kg2 {[%emt 0:00:00]} Ng7 {[%emt 0:01:10]} 1/2-1/2

[Event "Lueneburg Open-A 2019"]
[Site "Lueneburg"]
[Date "2019.08.07"]
[Round "5.21"]
[White "Klages, Hans Juergen"]
[Black "Schwarz, Jochen"]
[Result "1/2-1/2"]
[ECO "C01"]
[WhiteElo "2095"]
[BlackElo "1909"]
[Annotator "NA"]
[PlyCount "30"]
[EventDate "2019.08.03"]
[EventType "swiss"]
[EventCountry "GER"]
[SourceTitle "playchess.com"]
[Source "ChessBase"]
[SourceQuality "1"]
[TimeControl "40/5400+30:1800+30"]

1. e4 {[%emt 0:00:00]} e6 {[%emt 0:00:00]} 2. d4 {[%emt 0:00:31]} d5 {[%emt 0:00:00]} 3. Nc3 {[%emt 0:00:27]} Nf6 {[%emt 0:00:08]} 4. Bd3 {[%emt 0:01:06]} c5 {[%emt 0:02:20]} 5. exd5 {[%emt 0:02:03]} exd5 {[%emt 0:03:23]} 6. Bg5 {[%emt 0:03:05]} Be6 {[%emt 0:05:55]} 7. Nf3 {[%emt 0:00:30]} Nc6 {[%emt 0:02:27]} 8. O-O {[%emt 0:02:20]} cxd4 {[%emt 0:02:40]} 9. Nb5 {[%emt 0:00:08]} Be7 {[%emt 0:04:15]} 10. Nbxd4 {[%emt 0:00:24]} Bg4 {[%emt 0:04:33]} 11. Nf5 {[%emt 0:02:39]} Bxf5 {[%emt 0:04:22]} 12. Bxf5 {[%emt 0:00:02]} O-O {[%emt 0:00:44]} 13. c3 {[%emt 0:01:00]} Ne4 {[%emt 0:10:28]} 14. Bxe7 {[%emt 0:08:17]} Nxe7 {[%emt 0:00:52]} 15. Bxe4 {[%emt 0:00:11]} dxe4 {[%emt 0:00:10]} 1/2-1/2

[Event "Lueneburg Open-A 2019"]
[Site "Lueneburg"]
[Date "2019.08.07"]
[Round "5.22"]
[White "von Estorff, Jacob"]
[Black "Meschke, Oliver"]
[Result "1-0"]
[ECO "B35"]
[WhiteElo "2055"]
[BlackElo "1900"]
[Annotator "NA"]
[PlyCount "123"]
[EventDate "2019.08.03"]
[EventType "swiss"]
[EventCountry "GER"]
[SourceTitle "playchess.com"]
[Source "ChessBase"]
[SourceQuality "1"]
[TimeControl "40/5400+30:1800+30"]

1. e4 {[%emt 0:00:00]} c5 {[%emt 0:00:00]} 2. Nf3 {[%emt 0:00:00]} Nc6 {[%emt 0:00:00]} 3. d4 {[%emt 0:00:00]} cxd4 {[%emt 0:00:00]} 4. Nxd4 {[%emt 0:00:06]} g6 {[%emt 0:00:00]} 5. Nc3 {[%emt 0:00:28]} Bg7 {[%emt 0:00:01]} 6. Be3 {[%emt 0:00:05]} Nf6 {[%emt 0:00:07]} 7. Bc4 {[%emt 0:00:18]} Qa5 {[%emt 0:00:06]} 8. O-O {[%emt 0:00:56]} O-O {[%emt 0:00:22]} 9. Bb3 {[%emt 0:00:15]} d6 {[%emt 0:00:06]} 10. h3 {[%emt 0:00:53]} Bd7 {[%emt 0:00:32]} 11. f4 {[%emt 0:03:20]} Nxd4 {[%emt 0:00:36]} 12. Bxd4 {[%emt 0:00:18]} Bc6 {[%emt 0:00:06]} 13. Qe2 {[%emt 0:03:46]} Qb4 {[%emt 0:00:58]} 14. Rad1 {[%emt 0:18:52]} Nxe4 {[%emt 0:00:40]} 15. Bxg7 {[%emt 0:01:06]} Kxg7 {[%emt 0:00:52]} 16. Nxe4 {[%emt 0:00:56]} Bxe4 {[%emt 0:03:10]} 17. Kh2 {[%emt 0:05:38]} f5 {[%emt 0:05:57]} 18. Qe3 {[%emt 0:09:16]} b6 {[%emt 0:03:53]} 19. Bd5 {[%emt 0:01:37]} Rac8 {[%emt 0:15:11]} 20. Rd4 {[%emt 0:09:32]} Qc5 {[%emt 0:04:25]} 21. Bxe4 {[%emt 0:02:25]} fxe4 {[%emt 0:00:36]} 22. Qxe4 {[%emt 0:00:40]} e5 {[%emt 0:04:27]} 23. Rd2 {[%emt 0:02:03]} Qc4 {[%emt 0:08:04]} 24. Qxc4 {[%emt 0:04:57]} Rxc4 {[%emt 0:00:11]} 25. b3 {[%emt 0:00:13]} Rcxf4 {[%emt 0:09:15]} 26. Rxf4 {[%emt 0:00:33]} Rxf4 {[%emt 0:00:46]} 27. Rxd6 {[%emt 0:00:24]} Rf2 {[%emt 0:03:58]} 28. Rd7+ {[%emt 0:08:17]} Kf6 {[%emt 0:01:00]} 29. Rxh7 {[%emt 0:01:01]} e4 {[%emt 0:03:14]} 30. Kg3 {[%emt 0:00:34]} Rxc2 {[%emt 0:03:41]} 31. Rxa7 {[%emt 0:00:26]} Ke5 {[%emt 0:01:28]} 32. Rb7 {[%emt 0:04:30]} Rc3+ {[%emt 0:11:14]} 33. Kg4 {[%emt 0:01:45]} Rc2 {[%emt 0:01:18]} 34. g3 {[%emt 0:02:01]} Rc6 {[%emt 0:04:37]} 35. Rd7 {[%emt 0:11:37]} Rf6 {[%emt 0:02:13]} 36. Re7+ {[%emt 0:01:29]} Kd4 {[%emt 0:00:58]} 37. Kg5 {[%emt 0:00:33]} Rf3 {[%emt 0:00:26]} 38. g4 {[%emt 0:00:08]} Rxh3 {[%emt 0:00:57]} 39. Kxg6 {[%emt 0:00:05]} e3 {[%emt 0:03:20]} 40. g5 {[%emt 0:06:30]} Kd3 {[%emt 0:02:08]} 41. a4 {[%emt 0:32:06]} Kd2 {[%emt 0:31:05]} 42. b4 {[%emt 0:00:25]} Rh4 {[%emt 0:05:18]} 43. a5 {[%emt 0:00:16]} b5 {[%emt 0:00:00]} 44. Kf5 {[%emt 0:00:00]} Rxb4 {[%emt 0:00:00]} 45. g6 {[%emt 0:00:00]} Rb1 {[%emt 0:00:00]} 46. g7 {[%emt 0:00:00]} Rg1 {[%emt 0:00:00]} 47. a6 {[%emt 0:00:00]} Rf1+ {[%emt 0:00:00]} 48. Ke4 {[%emt 0:00:00]} e2 {[%emt 0:00:00]} 49. Kd4 {[%emt 0:00:00]} Rf4+ {[%emt 0:03:29]} 50. Kd5 {[%emt 0:00:00]} Rf5+ {[%emt 0:01:33]} 51. Kc6 {[%emt 0:00:00]} Rg5 {[%emt 0:00:47]} 52. a7 {[%emt 0:00:00]} Rxg7 {[%emt 0:01:15]} 53. Rxe2+ {[%emt 0:00:00]} Kxe2 {[%emt 0:00:05]} 54. a8=Q {[%emt 0:00:00]} Rg3 {[%emt 0:01:19]} 55. Kxb5 {[%emt 0:00:00]} Re3 {[%emt 0:00:45]} 56. Qg2+ {[%emt 0:00:00]} Kd3 {[%emt 0:00:09]} 57. Kc5 {[%emt 0:00:00]} Re5+ {[%emt 0:00:37]} 58. Kd6 {[%emt 0:00:00]} Re4 {[%emt 0:01:02]} 59. Qf2 {[%emt 0:00:00]} Rd4+ {[%emt 0:00:10]} 60. Ke5 {[%emt 0:00:00]} Re4+ {[%emt 0:00:42]} 61. Kd5 {[%emt 0:00:00]} Re3 {[%emt 0:00:49]} 62. Qb2 {[%emt 0:10:40]} 1-0

[Event "Lueneburg Open-A 2019"]
[Site "Lueneburg"]
[Date "2019.08.07"]
[Round "5.23"]
[White "Schulze, Lukas"]
[Black "Comes, Bruno"]
[Result "0-1"]
[ECO "A35"]
[WhiteElo "1724"]
[BlackElo "2165"]
[Annotator "NA"]
[PlyCount "72"]
[EventDate "2019.08.03"]
[EventType "swiss"]
[EventCountry "GER"]
[SourceTitle "playchess.com"]
[Source "ChessBase"]
[SourceQuality "1"]
[TimeControl "40/5400+30:1800+30"]

1. Nf3 {[%emt 0:00:00]} c5 {[%emt 0:00:00]} 2. c4 {[%emt 0:00:00]} Nc6 {[%emt 0:00:00]} 3. d4 {[%emt 0:00:00]} cxd4 {[%emt 0:00:38]} 4. Nxd4 {[%emt 0:00:00]} g6 {[%emt 0:00:59]} 5. Nc3 {[%emt 0:00:46]} Bg7 {[%emt 0:00:31]} 6. Be3 {[%emt 0:00:40]} Nf6 {[%emt 0:02:07]} 7. g3 {[%emt 0:02:45]} O-O {[%emt 0:05:08]} 8. Bg2 {[%emt 0:00:28]} Ng4 {[%emt 0:04:47]} 9. Nxc6 {[%emt 0:01:22]} dxc6 {[%emt 0:05:21]} 10. Bf4 {[%emt 0:03:00]} Qb6 {[%emt 0:02:22]} 11. O-O {[%emt 0:02:29]} Qxb2 {[%emt 0:01:10]} 12. Na4 {[%emt 0:01:36]} Qxa1 {[%emt 0:00:56]} 13. Qxa1 {[%emt 0:01:40]} Bxa1 {[%emt 0:00:06]} 14. Rxa1 {[%emt 0:00:11]} Rd8 {[%emt 0:16:21]} 15. Nc5 {[%emt 0:01:48]} e5 {[%emt 0:02:29]} 16. Bg5 {[%emt 0:00:52]} f6 {[%emt 0:00:23]} 17. Bc1 {[%emt 0:01:05]} Rd1+ {[%emt 0:00:28]} 18. Bf1 {[%emt 0:00:21]} Nxh2 {[%emt 0:55:14]} 19. Kxh2 {[%emt 0:00:49]} Rxf1 {[%emt 0:00:00]} 20. Kg2 {[%emt 0:01:49]} Rd1 {[%emt 0:00:00]} 21. Nd3 {[%emt 0:00:44]} Bf5 {[%emt 0:00:00]} 22. Nc5 {[%emt 0:02:32]} b6 {[%emt 0:00:00]} 23. Nb3 {[%emt 0:02:05]} Rad8 {[%emt 0:00:00]} 24. c5 {[%emt 0:03:20]} Bc2 {[%emt 0:00:00]} 25. cxb6 {[%emt 0:01:39]} axb6 {[%emt 0:00:00]} 26. Be3 {[%emt 0:01:23]} Bxb3 {[%emt 0:00:00]} 27. Rxd1 {[%emt 0:00:12]} Bxd1 {[%emt 0:00:00]} 28. Bxb6 {[%emt 0:00:08]} Rb8 {[%emt 0:00:00]} 29. Bc5 {[%emt 0:00:21]} Bxe2 {[%emt 0:00:00]} 30. a3 {[%emt 0:00:19]} Rb3 {[%emt 0:00:00]} 31. Kh3 {[%emt 0:00:34]} f5 {[%emt 0:00:00]} 32. Kg2 {[%emt 0:00:47]} Bf3+ {[%emt 0:00:00]} 33. Kh3 {[%emt 0:00:51]} Rb1 {[%emt 0:00:00]} 34. Kh4 {[%emt 0:02:11]} h6 {[%emt 0:00:00]} 35. g4 {[%emt 0:00:44]} f4 {[%emt 0:00:00]} 36. g5 {[%emt 0:01:04]} Rh1# {[%emt 0:09:00] a4} 0-1

[Event "Lueneburg Open-A 2019"]
[Site "Lueneburg"]
[Date "2019.08.07"]
[Round "5.25"]
[White "Garbuszus, Juergen"]
[Black "Hesse, Juergen"]
[Result "1-0"]
[ECO "E81"]
[WhiteElo "2070"]
[BlackElo "1877"]
[Annotator "NA"]
[PlyCount "47"]
[EventDate "2019.08.03"]
[EventType "swiss"]
[EventCountry "GER"]
[SourceTitle "playchess.com"]
[Source "ChessBase"]
[SourceQuality "1"]
[TimeControl "40/5400+30:1800+30"]

1. d4 {[%emt 0:00:00]} Nf6 {[%emt 0:00:00]} 2. c4 {[%emt 0:00:00]} g6 {[%emt 0:00:00]} 3. Nc3 {[%emt 0:00:00]} Bg7 {[%emt 0:00:23]} 4. e4 {[%emt 0:00:00]} d6 {[%emt 0:00:12]} 5. f3 {[%emt 0:00:00]} O-O {[%emt 0:00:50]} 6. Bg5 {[%emt 0:00:01]} h6 {[%emt 0:01:35]} 7. Be3 {[%emt 0:00:04]} c6 {[%emt 0:02:12]} 8. Qd2 {[%emt 0:00:11]} Kh7 {[%emt 0:00:49]} 9. g4 {[%emt 0:08:10]} e5 {[%emt 0:04:43]} 10. d5 {[%emt 0:00:06]} c5 {[%emt 0:04:44]} 11. g5 {[%emt 0:02:13]} Ng8 {[%emt 0:01:16]} 12. h4 {[%emt 0:02:26]} h5 {[%emt 0:03:17]} 13. Bd3 {[%emt 0:01:21]} f5 {[%emt 0:09:01]} 14. gxf6 {[%emt 0:01:56]} Bxf6 {[%emt 0:01:09]} 15. O-O-O {[%emt 0:01:19]} Bxh4 {[%emt 0:08:01]} 16. Qg2 {[%emt 0:03:21]} Bf6 {[%emt 0:03:29]} 17. Nge2 {[%emt 0:00:14]} a6 {[%emt 0:03:20]} 18. Rdg1 {[%emt 0:02:24]} Qe8 {[%emt 0:01:53]} 19. f4 {[%emt 0:03:00]} Ne7 {[%emt 0:09:47]} 20. fxe5 {[%emt 0:10:23]} Bxe5 {[%emt 0:02:00]} 21. Qg5 {[%emt 0:00:19]} Rh8 {[%emt 0:04:50]} 22. Rxh5+ {[%emt 0:01:52]} Kg8 {[%emt 0:02:07]} 23. Rxh8+ {[%emt 0:00:37]} Kxh8 {[%emt 0:01:04]} 24. Nf4 {[%emt 0:04:36]} 1-0

[Event "Lueneburg Open-A 2019"]
[Site "Lueneburg"]
[Date "2019.08.07"]
[Round "5.26"]
[White "Lau, Felix"]
[Black "Serreck, Uwe"]
[Result "0-1"]
[ECO "B06"]
[WhiteElo "2044"]
[BlackElo "1869"]
[Annotator "NA"]
[PlyCount "94"]
[EventDate "2019.08.03"]
[EventType "swiss"]
[EventCountry "GER"]
[SourceTitle "playchess.com"]
[Source "ChessBase"]
[SourceQuality "1"]
[TimeControl "40/5400+30:1800+30"]

1. e4 {[%emt 0:00:00]} g6 {[%emt 0:00:00]} 2. d4 {[%emt 0:00:00]} Bg7 {[%emt 0:00:00]} 3. Nc3 {[%emt 0:00:03]} d6 {[%emt 0:00:00]} 4. Be3 {[%emt 0:00:29]} a6 {[%emt 0:00:00]} 5. Qd2 {[%emt 0:02:03]} Nd7 {[%emt 0:00:00]} 6. Bd3 {[%emt 0:01:31]} b5 {[%emt 0:00:04]} 7. a4 {[%emt 0:02:57]} b4 {[%emt 0:00:05]} 8. Nce2 {[%emt 0:01:46]} c5 {[%emt 0:00:04]} 9. c3 {[%emt 0:00:18]} bxc3 {[%emt 0:00:05]} 10. bxc3 {[%emt 0:00:04]} Qc7 {[%emt 0:00:11]} 11. Nf3 {[%emt 0:06:30]} Rb8 {[%emt 0:09:37]} 12. h4 {[%emt 0:05:24]} Ngf6 {[%emt 0:11:41]} 13. Ng3 {[%emt 0:05:55]} Ng4 {[%emt 0:05:30]} 14. h5 {[%emt 0:03:37]} Nxe3 {[%emt 0:01:32]} 15. fxe3 {[%emt 0:01:02]} Bh6 {[%emt 0:20:57]} 16. hxg6 {[%emt 0:03:00]} hxg6 {[%emt 0:00:28]} 17. Ng5 {[%emt 0:04:39]} Qa5 {[%emt 0:07:29]} 18. Bc4 {[%emt 0:09:39]} e6 {[%emt 0:03:31]} 19. e5 {[%emt 0:11:39]} dxe5 {[%emt 0:09:59]} 20. N3e4 {[%emt 0:03:01]} cxd4 {[%emt 0:00:50]} 21. exd4 {[%emt 0:06:16]} f6 {[%emt 0:16:01]} 22. Bxe6 {[%emt 0:14:56]} fxg5 {[%emt 0:02:57]} 23. Rxh6 {[%emt 0:03:16]} Rxh6 {[%emt 0:00:04]} 24. Qxg5 {[%emt 0:00:15]} Qb6 {[%emt 0:10:02]} 25. Bxd7+ {[%emt 0:03:18]} Bxd7 {[%emt 0:00:00]} 26. Qxh6 {[%emt 0:00:57]} exd4 {[%emt 0:00:49]} 27. Qh8+ {[%emt 0:01:46]} Ke7 {[%emt 0:00:59]} 28. Qg7+ {[%emt 0:00:29]} Kd8 {[%emt 0:00:02]} 29. Rd1 {[%emt 0:01:34]} d3 {[%emt 0:00:26]} 30. Rxd3 {[%emt 0:03:26]} Qg1+ {[%emt 0:00:01]} 31. Ke2 {[%emt 0:01:16]} Rb2+ {[%emt 0:00:01]} 32. Kf3 {[%emt 0:02:03]} Qxg2+ {[%emt 0:00:03]} 33. Kf4 {[%emt 0:00:39]} Qh2+ {[%emt 0:00:41]} 34. Ng3 {[%emt 0:01:00]} Qh4+ {[%emt 0:00:15]} 35. Kf3 {[%emt 0:00:16]} Qg4+ {[%emt 0:00:16]} 36. Ke3 {[%emt 0:00:21]} Qxg3+ {[%emt 0:00:01]} 37. Kd4 {[%emt 0:00:27]} Qf4+ {[%emt 0:00:07]} 38. Kc5 {[%emt 0:00:19]} Qc7+ {[%emt 0:01:15]} 39. Kd5 {[%emt 0:00:40]} Qc6+ {[%emt 0:00:46]} 40. Kd4 {[%emt 0:00:11]} Qd6+ {[%emt 0:01:14]} 41. Ke3 {[%emt 0:30:01]} Qe7+ {[%emt 0:05:40]} 42. Qxe7+ {[%emt 0:00:00]} Kxe7 {[%emt 0:00:01]} 43. Kf4 {[%emt 0:00:00]} Bxa4 {[%emt 0:00:22]} 44. Re3+ {[%emt 0:00:00]} Kd7 {[%emt 0:02:44]} 45. Ke5 {[%emt 0:00:00]} Rb6 {[%emt 0:00:28]} 46. Rd3+ {[%emt 0:00:00]} Kc7 {[%emt 0:00:36]} 47. Rd4 {[%emt 0:00:00]} Bc2 {[%emt 0:01:00]} 0-1